bitfinex/quotes_ETHUSD_20260208
["timestamp","ask_amount","ask_price","bid_price","bid_amount"]
[1770561735333,4.47086241,2122.5,2121.7,0.95829738]
[1770561735833,4.47085718,2122.5,2121.9,0.98036101]
[1770561736230,3.293,2122.5,2121.9,0.98036101]
[1770561736961,0.001,2122.6,2121.9,0.98036101]
[1770561737639,0.001,2122.6,2121.9,1.02741651]
[1770561737844,0.001,2122.6,2122.1,0.98036101]
[1770561738150,0.001,2122.3,2122.1,0.98036101]
[1770561738757,0.001,2122.6,2122.2,0.98036101]
[1770561740057,0.001,2122.6,2122.2,2.15835845]
[1770561740436,0.001,2122.6,2122.2,1.17799744]
[1770561741152,0.001,2122.6,2122.3,0.98036101]
[1770561743772,0.001,2122.6,2122.3,2.15830724]
[1770561744471,0.91701617,2122.6,2121.9,0.0011]
[1770561745742,2.0948612,2122.6,2121.9,1.17926907]
[1770561746047,1.17880201,2122.6,2122.0,0.98036101]
[1770561746252,1.17880201,2122.6,2121.9,1.17926907]
[1770561747572,2.09481818,2122.6,2121.9,1.17926907]
[1770561747754,0.001,2122.6,2122.0,0.98036101]
[1770561747949,0.001,2122.6,2122.1,2.15843932]
[1770561749172,0.001,2122.6,2122.0,1.17813077]
[1770561750079,0.001,2122.6,2121.9,0.0011]
[1770561750285,0.001,2122.6,2122.1,0.0011]
[1770561750488,0.001,2122.4,2122.1,0.0011]
[1770561755977,0.001,2122.6,2122.2,0.98036101]
[1770561756180,0.001,2122.6,2122.1,0.0011]
[1770561756181,1.17753017,2123.1,2122.3,0.98036101]
[1770561756385,1.17750064,2123.2,2122.3,0.98036101]
[1770561757367,0.91601617,2123.2,2122.4,1.17791179]
[1770561757795,0.91601617,2123.2,2122.3,2.15828986]
[1770561758005,0.91601617,2123.2,2122.1,0.0011]
[1770561758006,0.91601617,2123.2,2122.1,1.17914558]
[1770561758580,0.91601617,2123.2,2122.1,1.17917318]
[1770561758776,0.91601617,2123.2,2122.2,1.17801908]
[1770561760697,0.91601617,2123.0,2122.1,4.71339253]
[1770561760924,0.91601617,2123.0,2122.1,1.17917831]
[1770561761783,0.91601617,2123.0,2122.1,0.0011]
[1770561762594,0.91601617,2123.0,2122.3,0.0011]
[1770561762796,0.91601617,2122.8,2122.3,0.0011]
[1770561765299,0.99369435,2122.6,2122.3,0.0011]
[1770561766195,0.99369435,2122.2,2121.9,0.0011]
[1770561767220,0.99369435,2121.6,2121.2,0.0011]
[1770561767390,0.99369435,2121.6,2121.2,0.0044]
[1770561767391,4.28669435,2121.6,2121.2,0.0044]
[1770561768084,3.293,2121.6,2121.2,0.0044]
[1770561768288,0.99369435,2121.5,2121.2,0.0044]
[1770561770624,3.293,2121.6,2121.2,0.0044]
[1770561770913,4.47135788,2121.6,2121.2,0.0044]
[1770561771220,4.47135788,2121.6,2120.8,0.0011]
[1770561771221,0.99369435,2121.5,2120.8,0.0011]
[1770561771517,0.99369435,2121.3,2120.3,1.1790758]
[1770561771817,1.09609435,2121.2,2120.0,0.90670489]
[1770561772013,1.09609435,2121.2,2120.0,1.17923996]
[1770561772221,1.09609435,2121.2,2119.9,2.08597446]
[1770561772428,0.99369435,2121.0,2119.9,0.90670489]
[1770561773224,0.99369435,2121.0,2119.6,0.90670489]
[1770561773417,0.99369435,2120.8,2119.8,1.17935023]
[1770561773932,0.99369435,2120.8,2119.8,2.08605512]
[1770561774615,1.17885603,2120.7,2119.9,1.17929278]
[1770561774817,2.17253461,2120.8,2119.8,2.0860239]
[1770561774997,2.17253461,2120.8,2120.2,0.0011]
[1770561775594,1.17884026,2120.8,2120.2,0.0011]
[1770561775903,2.17253461,2120.8,2120.2,0.0011]
[1770561776301,2.17250027,2120.8,2120.2,0.0011]
[1770561776614,1.17880449,2120.8,2120.2,0.0011]
[1770561778027,0.99369435,2120.7,2120.2,0.0011]
[1770561778630,1.17880449,2120.8,2120.2,0.0011]
[1770561780423,2.17249884,2120.8,2120.2,0.0011]
[1770561780622,4.47277599,2120.9,2120.2,0.0011]
[1770561781506,0.99369435,2120.8,2120.2,0.0011]
[1770561781703,2.17342029,2121.0,2120.2,0.0011]
[1770561782033,5.46942029,2121.0,2120.2,0.0011]
[1770561782831,3.297,2121.0,2120.2,0.90780489]
[1770561783326,0.001,2121.0,2120.2,0.90780489]
[1770561784819,0.001,2121.0,2120.4,0.95376039]
[1770561786828,0.001,2121.0,2120.6,0.90670489]
[1770561788652,2.17166164,2122.3,2120.9,0.90670489]
[1770561788856,8.46186919,2122.4,2121.1,0.95376039]
[1770561788857,1.17807831,2122.1,2121.1,0.95376039]
[1770561789158,2.17177266,2122.1,2121.1,0.90670489]
[1770561790518,1.17807831,2122.1,2121.1,0.90670489]
[1770561790841,0.99369435,2122.2,2121.2,1.17857816]
[1770561791148,0.99369435,2122.0,2121.0,1.17864742]
[1770561791457,0.99369435,2122.0,2121.1,1.1786244]
[1770561792171,2.17166164,2122.3,2121.2,0.90670489]
[1770561792667,2.17134119,2122.9,2121.6,0.90670489]
[1770561792965,0.99369435,2122.4,2121.4,5.62056344]
[1770561793148,0.99369435,2122.4,2121.5,1.17836928]
[1770561793350,0.99369435,2122.4,2121.4,1.178431]
[1770561793536,0.99369435,2122.4,2121.5,1.17841087]
[1770561793938,0.99369435,2122.4,2121.4,1.1784258]
[1770561795544,1.17796729,2122.3,2121.3,5.71403686]
[1770561795858,0.99231627,2122.2,2121.3,5.71403686]
[1770561796634,0.99231627,2122.2,2121.1,1.17859707]
[1770561796849,0.99231627,2122.2,2121.2,2.17853482]
[1770561797168,1.17796729,2122.3,2121.3,0.99996124]
[1770561797370,2.17026624,2122.4,2121.3,0.99996124]
[1770561797668,2.17026624,2122.4,2121.4,2.17842829]
[1770561798371,0.99231627,2122.9,2121.6,0.0470555]
[1770561798541,2.16999112,2122.9,2121.7,0.99996124]
[1770561799566,0.001,2122.2,2121.8,1.17824488]
[1770561799762,0.001,2122.2,2121.9,0.99996124]
[1770561802155,0.001,2122.2,2121.8,1.17824368]
[1770561802553,0.001,2122.2,2121.7,1.17826453]
[1770561802754,0.001,2122.2,2121.6,4.7134124]
[1770561802755,0.001,2122.2,2121.5,5.71346546]
[1770561802950,0.001,2122.2,2121.6,1.17835586]
[1770561803942,0.99331627,2122.2,2121.5,1.17840968]
[1770561804143,0.99331627,2122.2,2121.2,4.29396124]
[1770561804349,0.001,2122.2,2121.3,0.99996124]
[1770561804569,0.001,2122.2,2121.3,1.04701674]
[1770561806366,0.001,2122.2,2121.5,0.99996124]
[1770561806773,0.001,2122.2,2121.6,0.0470555]
[1770561806940,0.001,2122.2,2121.6,1.04701674]
[1770561808451,0.001,2122.2,2121.7,1.17830041]
[1770561808858,0.99231627,2122.1,2121.4,1.17844252]
[1770561809060,0.99231627,2122.1,2121.4,1.17843053]
[1770561809569,0.99231627,2122.1,2121.4,1.17843031]
[1770561810252,0.99231627,2122.1,2121.3,1.17847985]
[1770561810562,0.99231627,2122.1,2121.1,1.17863372]
[1770561810563,1.17813383,2122.0,2121.1,1.17863372]
[1770561810767,2.1704501,2122.0,2121.1,1.17863372]
[1770561811072,0.99231627,2121.9,2121.1,1.17863372]
[1770561813265,2.17052038,2121.9,2121.6,0.0011]
[1770561813780,0.99231627,2121.9,2121.6,0.0011]
[1770561813956,0.001,2122.2,2121.6,0.0011]
[1770561814157,0.001,2122.0,2121.6,0.0011]
[1770561815570,0.001,2122.0,2121.6,1.00106124]
[1770561816580,0.2806258,2123.5,2121.7,1.04701674]
[1770561816581,0.99231627,2122.9,2121.7,1.04701674]
[1770561817547,1.17768984,2122.8,2121.8,2.17820612]
[1770561818876,2.16996204,2122.9,2121.8,2.17820612]
[1770561819280,2.16996204,2122.9,2121.9,0.99996124]
[1770561820276,2.16996204,2122.9,2122.0,1.17813383]
[1770561820463,0.001,2123.0,2122.1,0.99996124]
[1770561821270,1.17858388,2123.0,2122.1,0.99996124]
[1770561821777,0.001,2123.0,2122.1,0.99996124]
[1770561822373,0.001,2123.0,2122.3,0.99996124]
[1770561823056,0.001,2123.0,2122.2,1.1780228]
[1770561823262,0.99331627,2123.0,2122.2,1.1780228]
[1770561824879,0.94845919,2122.8,2122.0,1.17810936]
[1770561825054,0.94845919,2122.8,2122.0,1.17812521]
[1770561825579,0.94845919,2122.8,2121.9,1.17814968]
[1770561825753,0.94845919,2122.8,2121.9,1.17924968]
[1770561825949,0.001,2122.7,2121.9,1.17924968]
[1770561826164,0.001,2122.7,2122.0,1.1780984]
[1770561826983,0.001,2122.7,2121.9,0.96430228]
[1770561828955,0.001,2122.7,2121.9,0.0011]
[1770561829187,0.001,2122.7,2121.9,0.96430228]
[1770561829487,1.17874754,2122.7,2121.9,0.96430228]
[1770561831185,0.001,2122.7,2121.9,0.96430228]
[1770561831685,0.001,2122.7,2122.0,1.17813383]
[1770561832063,0.94945919,2122.7,2122.0,1.17813383]
[1770561834689,2.12724676,2122.7,2121.9,0.0011]
[1770561835256,0.001,2122.7,2121.9,0.96430228]
[1770561837192,0.001,2122.7,2122.0,2.14133611]
[1770561837592,0.001,2122.7,2122.1,0.96320228]
[1770561838208,0.001,2122.7,2122.1,0.96430228]
[1770561838503,0.001,2122.5,2122.1,0.0011]
[1770561840211,0.94945919,2122.5,2122.1,0.0011]
[1770561841401,0.94845919,2122.3,2122.1,0.0011]
[1770561841598,0.94845919,2122.3,2121.6,0.0011]
[1770561841803,0.94845919,2122.3,2121.6,0.0022]
[1770561841997,0.94845919,2122.3,2121.6,0.0011]
[1770561842507,0.94845919,2122.3,2121.6,0.0022]
[1770561843529,1.1780228,2122.2,2121.6,0.0022]
[1770561843807,0.94845919,2122.1,2121.6,0.0022]
[1770561844311,1.1780228,2122.2,2121.7,0.0011]
[1770561844504,1.17800933,2122.3,2121.7,0.0011]
[1770561844710,1.17800933,2122.3,2121.8,0.0011]
[1770561845017,1.17800933,2122.3,2121.7,0.0011]
[1770561845188,1.17800933,2122.3,2121.4,0.71650228]
[1770561846698,0.94845919,2122.3,2121.4,1.17842313]
[1770561846897,0.94845919,2122.3,2121.3,1.17848038]
[1770561847102,0.94845919,2122.3,2121.4,1.17846506]
[1770561848393,0.94845919,2122.3,2121.1,4.71437455]
[1770561848711,1.1780228,2122.2,2121.1,5.67757683]
[1770561848888,0.94845919,2122.1,2121.1,5.67757683]
[1770561849889,0.94845919,2122.1,2121.2,0.96320228]
[1770561850089,1.1780228,2122.2,2121.6,0.0011]
[1770561850289,0.001,2122.1,2121.6,0.0011]
[1770561851493,0.94845919,2122.0,2121.6,0.0011]
[1770561852913,0.001,2122.1,2121.6,0.0011]
[1770561853428,0.94945919,2122.1,2121.6,0.0011]
[1770561853795,0.001,2122.1,2121.6,0.0011]
[1770561854529,0.94945919,2122.1,2121.6,0.0011]
[1770561855725,1.17813383,2122.0,2121.6,0.0011]
[1770561856104,0.001,2122.1,2121.6,0.98271658]
[1770561856307,0.001,2122.5,2121.9,0.98161658]
[1770561856499,0.001,2122.4,2121.6,0.0011]
[1770561856817,0.90583583,2122.4,2121.6,0.0011]
[1770561857323,0.001,2122.3,2121.6,0.98271658]
[1770561857622,0.001,2122.4,2121.6,0.98271658]
[1770561857806,0.001,2122.4,2121.7,1.17830041]
[1770561858122,0.001,2122.3,2121.7,1.17830041]
[1770561858319,0.001,2122.4,2121.7,1.17830041]
[1770561858714,0.001,2122.3,2121.7,1.17830041]
[1770561859025,0.90583583,2122.5,2121.7,1.17830041]
[1770561859026,0.001,2122.4,2121.8,0.98161658]
[1770561859516,0.001,2122.5,2121.8,0.98161658]
[1770561859924,0.001,2122.5,2121.9,2.15980593]
[1770561860635,0.001,2122.5,2121.9,1.17818935]
[1770561860819,0.001,2122.4,2121.9,1.17818935]
[1770561861922,0.001,2122.3,2121.6,0.0011]
[1770561862324,0.001,2122.2,2121.6,0.0011]
[1770561863123,0.001,2122.1,2121.6,0.0011]
[1770561866204,0.001,2122.1,2121.7,1.17830041]
[1770561868026,0.001,2122.2,2121.8,0.98161658]
[1770561868211,0.001,2122.2,2121.9,1.17818935]
[1770561868625,0.001,2122.2,2121.9,2.15980593]
[1770561868818,0.001,2122.5,2121.9,2.15980593]
[1770561873514,0.001,2122.5,2122.0,0.98161658]
[1770561873938,0.90583583,2123.0,2122.2,0.98161658]
[1770561874232,0.001,2122.3,2121.9,4.47118935]
[1770561874405,0.90483583,2122.7,2121.9,4.47118935]
[1770561876434,2.08345552,2123.0,2122.0,0.98161658]
[1770561876938,0.90483583,2122.9,2122.0,0.98161658]
[1770561877738,0.90483583,2122.9,2121.9,4.47118935]
[1770561879134,0.90483583,2122.7,2121.9,4.47118935]
[1770561879940,0.90483583,2122.7,2121.9,3.293]
[1770561880127,0.90483583,2122.7,2121.8,0.0011]
[1770561880737,0.90483583,2122.7,2121.8,1.17931864]
[1770561881447,2.08263664,2122.6,2121.8,0.0011]
[1770561881839,0.90483583,2122.5,2121.8,0.0011]
[1770561883450,0.90483583,2122.4,2121.8,0.0011]
[1770561886334,0.90483583,2122.4,2122.0,0.0011]
[1770561888750,1.17791572,2122.4,2122.0,0.0011]
[1770561888938,0.90391173,2122.3,2122.0,0.0011]
[1770561889253,2.08180945,2122.5,2122.0,0.0011]
[1770561889655,2.08269425,2122.7,2122.0,0.0011]
[1770561890236,0.90391173,2122.6,2122.0,0.0011]
[1770561892954,2.08172433,2122.6,2122.0,0.0011]
[1770561894041,0.90391173,2122.5,2122.0,0.0011]
[1770561896159,0.001,2122.7,2122.1,0.99012213]
[1770561896361,0.001,2123.0,2122.1,0.99012213]
[1770561896362,0.001,2123.0,2122.3,0.99012213]
[1770561896563,2.08111067,2123.7,2122.9,1.2355639]
[1770561896734,0.001,2124.0,2123.1,0.99012213]
[1770561897262,0.001,2124.0,2123.4,0.0470555]
[1770561897559,0.001,2124.0,2123.4,0.99012213]
[1770561897932,2.08057908,2124.7,2123.5,0.99012213]
[1770561898158,2.08057908,2124.7,2123.6,2.16736831]
[1770561900162,0.90391173,2124.6,2123.6,1.17724618]
[1770561900461,0.90391173,2124.6,2122.9,0.24544177]
[1770561900462,0.90391173,2123.7,2122.9,0.24544177]
[1770561901339,0.90391173,2124.0,2122.9,0.24544177]
[1770561901541,0.90391173,2124.0,2123.1,1.17748573]
[1770561901861,0.90391173,2124.0,2123.0,1.17757695]
[1770561902361,0.0470555,2124.5,2122.9,2.16775649]
[1770561902362,2.08082539,2124.2,2122.9,2.16775649]
[1770561902550,2.08082539,2124.2,2123.0,0.99012213]
[1770561903061,2.0806072,2124.6,2123.3,1.03717763]
[1770561903930,1.17669547,2124.6,2123.3,1.03717763]
[1770561904565,0.90391173,2124.8,2123.5,0.99012213]
[1770561906942,2.08052835,2124.8,2123.7,0.99012213]
[1770561907374,0.90391173,2124.7,2123.6,1.17724618]
[1770561908380,4.7063253,2125.0,2123.8,0.99012213]
[1770561908381,1.17649019,2125.0,2123.8,0.99012213]
[1770561908569,0.001,2125.1,2124.0,0.99012213]
[1770561908766,0.001,2125.1,2124.3,0.99012213]
[1770561908958,0.001,2125.1,2124.6,1.17669208]
[1770561910484,0.001,2125.1,2124.6,2.16681421]
[1770561911049,1.17602784,2125.8,2124.7,0.99012213]
[1770561911460,0.90391173,2125.7,2124.6,1.17669208]
[1770561913281,1.1761385,2125.6,2124.6,2.16681421]
[1770561914262,1.17612217,2125.7,2124.7,0.99012213]
[1770561915885,5.70028443,2125.8,2124.8,1.17658132]
[1770561916083,0.99613248,2125.7,2124.8,1.17658132]
[1770561918186,2.1722523,2125.7,2124.8,1.17658132]
[1770561918615,1.17599564,2125.9,2124.9,0.90172801]
[1770561918785,1.17595877,2126.0,2124.9,0.90172801]
[1770561920294,0.99613248,2126.1,2125.0,1.17647058]
[1770561920869,0.99613248,2126.1,2124.9,1.17649124]
[1770561921795,0.99613248,2126.1,2124.7,3.289]
[1770561922093,0.99613248,2125.9,2124.4,1.17677636]
[1770561922269,0.99613248,2125.7,2124.3,4.70726467]
[1770561923374,0.99613248,2125.7,2124.4,0.90172801]
[1770561924000,0.99713248,2125.7,2124.4,0.90172801]
[1770561925098,0.99613248,2125.5,2124.5,1.17674746]
[1770561927599,0.99613248,2125.3,2124.3,1.17685333]
[1770561927800,0.99613248,2125.3,2124.4,1.17680174]
[1770561928911,0.99613248,2125.3,2124.3,1.17682658]
[1770561929502,0.99613248,2125.3,2124.2,4.46589151]
[1770561929676,1.17635987,2125.2,2124.2,4.46589151]
[1770561929881,1.17624917,2125.4,2124.3,0.94878351]
[1770561930209,0.99613248,2125.3,2124.2,4.46589151]
[1770561930703,0.99613248,2125.3,2124.3,0.90172801]
[1770561930907,1.17624917,2125.4,2124.3,0.90172801]
[1770561931290,2.17238165,2125.4,2124.3,0.90172801]
[1770561931912,2.17238165,2125.4,2124.4,1.17680286]
[1770561932209,0.99613248,2125.4,2124.5,0.90172801]
[1770561932413,1.17621972,2125.5,2124.5,0.90172801]
[1770561932611,2.17230212,2125.6,2124.5,0.94878351]
[1770561933085,0.99613248,2125.5,2124.5,0.90172801]
[1770561934411,0.99713248,2125.7,2124.6,2.07842009]
[1770561935007,0.99713248,2125.7,2124.5,1.17672194]
[1770561935309,0.99713248,2125.7,2124.6,0.90172801]
[1770561936587,0.001,2125.5,2124.7,1.1766367]
[1770561938241,0.001,2125.5,2124.7,2.07836471]
[1770561939421,0.001,2125.5,2124.8,0.90172801]
[1770561940008,0.001,2125.5,2124.6,4.7065468]
[1770561940211,0.99613248,2125.4,2124.6,4.7065468]
[1770561940622,0.99613248,2125.4,2124.6,7.9955468]
[1770561942313,2.1724314,2125.4,2124.6,7.9955468]
[1770561943638,0.99613248,2125.4,2124.6,7.9955468]
[1770561943931,2.17239664,2125.4,2124.6,7.9955468]
[1770561944134,1.17723106,2125.5,2124.6,8.89727481]
[1770561944340,0.001,2125.5,2124.6,8.89727481]
[1770561944630,1.17719435,2125.5,2124.6,8.89727481]
[1770561945629,0.001,2125.5,2124.7,0.96265654]
[1770561948937,0.94218645,2125.5,2124.7,1.17662383]
[1770561949312,0.94218645,2125.5,2124.8,0.0011]
[1770561949637,0.001,2125.3,2124.8,0.0011]
[1770561950424,0.94118645,2125.2,2124.8,0.0011]
[1770561951113,1.17641522,2125.1,2124.8,0.0011]
[1770561951537,0.001,2125.3,2124.8,0.0011]
[1770561951748,0.94118645,2125.2,2124.8,0.0011]
[1770561952115,0.94118645,2125.2,2124.5,0.0011]
[1770561953021,0.94118645,2125.0,2124.5,0.0011]
[1770561953222,0.94118645,2125.0,2123.8,1.17819303]
[1770561953943,0.94118645,2125.0,2123.8,0.0011]
[1770561955557,0.94118645,2124.7,2123.8,0.0011]
[1770561957755,0.94118645,2124.5,2123.8,0.0011]
[1770561959134,0.94118645,2124.5,2123.5,0.0011]
[1770561959841,0.94118645,2124.3,2123.5,0.0011]
[1770561960566,4.23118645,2124.3,2123.5,0.0011]
[1770561960735,0.94118645,2124.2,2122.7,0.0011]
[1770561960928,0.94118645,2124.2,2122.7,1.17884137]
[1770561961354,0.94118645,2124.2,2122.8,1.17766249]
[1770561961555,0.94118645,2124.2,2123.7,0.0011]
[1770561961740,0.94118645,2124.0,2122.7,0.0011]
[1770561962159,0.94118645,2123.9,2122.7,0.0011]
[1770561962938,0.94118645,2124.2,2123.1,1.00971204]
[1770561963152,0.94118645,2124.5,2123.1,1.00971204]
[1770561964154,2.11796852,2124.5,2123.3,0.96265654]
[1770561964364,1.17678207,2124.5,2123.5,0.96265654]
[1770561966346,2.11792498,2124.6,2123.6,1.17724618]
[1770561967142,1.17661988,2124.8,2123.7,1.00971204]
[1770561967547,0.94118645,2124.7,2123.7,0.96265654]
[1770561968169,0.94118645,2124.7,2123.6,1.17724618]
[1770561968868,2.11787853,2124.6,2123.5,4.70898474]
[1770561969178,0.94118645,2124.5,2123.5,1.17730162]
[1770561970369,0.94118645,2124.5,2123.4,1.17735193]
[1770561971375,0.94118645,2124.5,2123.2,1.17746632]
[1770561971376,0.94118645,2124.3,2123.2,1.17746632]
[1770561973453,0.94118645,2124.1,2122.8,5.67340058]
[1770561974062,0.94118645,2124.1,2123.3,0.0011]
[1770561975265,0.94118645,2124.1,2123.0,0.0011]
[1770561975464,0.94925539,2123.9,2123.0,0.0011]
[1770561977358,0.94925539,2123.7,2123.0,0.0011]
[1770561981883,1.17724618,2123.6,2123.0,0.0011]
[1770561982898,2.12627987,2124.0,2123.0,0.97318788]
[1770561984072,0.94925539,2123.9,2123.0,1.17863826]
[1770561984271,0.94925539,2123.9,2123.0,1.17867646]
[1770561984884,2.12627987,2124.0,2123.0,2.15076434]
[1770561986800,2.12627987,2124.0,2123.2,0.0011]
[1770561986982,0.001,2123.4,2123.2,0.0011]
[1770561996096,0.95025539,2123.4,2123.2,0.0011]
[1770561996516,0.001,2123.4,2123.2,0.0011]
[1770561997825,0.95025539,2123.4,2122.7,0.0011]
[1770561999116,0.95025539,2123.4,2123.2,0.0011]
[1770561999315,2.12612183,2124.3,2123.1,0.97208788]
[1770561999518,2.12612637,2124.3,2123.1,0.97208788]
[1770562000497,2.12612637,2124.3,2123.3,0.97208788]
[1770562001429,1.17682854,2124.4,2123.5,0.97208788]
[1770562004408,2.12704186,2124.5,2123.6,1.17724618]
[1770562004942,0.001,2124.5,2123.7,0.99514614]
[1770562005942,0.001,2124.5,2123.8,0.99514614]
[1770562006832,0.001,2124.5,2124.0,0.99514614]
[1770562007037,0.001,2125.0,2124.1,0.99514614]
[1770562007708,0.001,2125.0,2124.3,0.99514614]
[1770562008831,0.94380479,2125.0,2124.2,1.17688287]
[1770562009220,0.94380479,2125.0,2124.1,1.17696647]
[1770562010410,0.94380479,2125.0,2123.8,1.17710479]
[1770562010602,0.94380479,2125.0,2123.8,1.17713287]
[1770562010826,0.94280479,2124.8,2123.8,1.17713287]
[1770562011310,0.94380479,2124.8,2123.8,1.17713287]
[1770562013849,0.94280479,2124.6,2123.8,1.17713287]
[1770562014557,1.17759508,2124.8,2123.9,0.99514614]
[1770562014716,1.17759122,2124.8,2123.9,0.99514614]
[1770562016051,1.17759122,2124.8,2124.0,1.17702448]
[1770562016435,0.001,2124.8,2124.0,1.17702448]
[1770562017834,0.001,2124.8,2124.0,2.17217062]
[1770562018332,0.001,2124.8,2124.1,0.99514614]
[1770562020147,0.001,2124.8,2124.3,0.99514614]
[1770562020543,0.94380479,2124.8,2124.1,1.17692661]
[1770562021442,0.001,2124.8,2124.1,2.17207275]
[1770562021627,0.001,2125.0,2124.3,0.99514614]
[1770562022149,0.001,2125.0,2124.5,0.99514614]
[1770562022856,0.001,2125.0,2124.6,0.99514614]
[1770562023932,0.001,2125.3,2124.6,0.99514614]
[1770562024322,0.001,2125.3,2124.8,0.99514614]
[1770562025758,0.001,2125.5,2124.9,0.99514614]
[1770562026331,0.001,2125.5,2125.0,2.17161672]
[1770562026530,0.001,2125.5,2125.1,3.29]
[1770562026954,0.001,2125.7,2125.2,0.99514614]
[1770562028326,0.001,2125.7,2125.3,1.17630452]
[1770562028725,0.94280479,2126.3,2125.3,2.17145066]
[1770562029333,0.94280479,2126.3,2125.4,0.99514614]
[1770562029824,2.11856262,2126.3,2125.4,0.99514614]
[1770562030249,2.11856196,2126.3,2125.3,1.17630452]
[1770562031731,0.94280479,2126.2,2125.3,1.17630452]
[1770562032352,0.94280479,2126.0,2124.5,0.99514614]
[1770562032551,0.94280479,2126.0,2125.0,1.17644048]
[1770562034040,0.94280479,2126.0,2125.1,1.17640815]
[1770562034655,2.118753,2126.0,2125.0,0.99514614]
[1770562035172,0.95217681,2125.9,2124.9,1.17652595]
[1770562035381,0.95217681,2125.9,2124.9,2.07671094]
[1770562035546,0.95217681,2125.9,2125.4,0.0011]
[1770562037669,2.12816665,2125.9,2125.4,0.0011]
[1770562038262,1.17598984,2125.9,2125.4,0.0011]
[1770562038454,1.17596548,2126.0,2125.4,0.0011]
[1770562038780,2.13308853,2126.0,2125.4,0.0011]
[1770562039871,0.95712305,2125.9,2125.4,0.0011]
[1770562042878,0.95712305,2125.7,2125.1,0.0011]
[1770562045065,0.95712305,2125.5,2125.1,0.0011]
[1770562046661,0.95712305,2125.5,2124.4,1.17676432]
[1770562047060,0.95712305,2125.5,2124.3,0.0011]
[1770562047061,0.95712305,2125.3,2124.3,0.0011]
[1770562048582,0.95712305,2125.3,2125.0,0.0011]
[1770562048773,0.95712305,2125.3,2124.3,0.0011]
[1770562050992,0.95712305,2125.1,2124.3,0.0011]
[1770562053491,0.95712305,2124.9,2124.3,0.0011]
[1770562054988,1.17647058,2125.0,2124.3,0.0011]
[1770562055363,0.95712305,2124.9,2124.3,0.0011]
[1770562055689,1.17658132,2124.8,2124.3,0.0011]
[1770562058070,1.17647058,2125.0,2124.3,0.0011]
[1770562058678,2.13359363,2125.0,2124.3,0.0011]
[1770562059391,4.46545758,2125.1,2124.3,0.90128499]
[1770562059765,9.41278396,2125.2,2124.6,0.90018499]
[1770562059766,3.50800127,2125.2,2124.6,0.90018499]
[1770562059969,1.17709059,2125.7,2125.1,0.0470555]
[1770562060166,0.95712305,2125.6,2124.8,1.1765746]
[1770562060683,0.95712305,2125.6,2124.8,1.17654893]
[1770562062262,1.17619383,2125.5,2124.7,4.70653746]
[1770562064172,1.17708485,2125.7,2124.8,0.90018499]
[1770562064502,0.001,2125.7,2124.9,2.07671094]
[1770562064995,0.001,2125.7,2125.0,0.96072763]
[1770562068695,0.95775923,2125.7,2124.9,1.17649521]
[1770562069089,0.95775923,2125.7,2125.0,1.17646277]
[1770562070781,0.95675923,2125.6,2124.7,0.96072763]
[1770562071900,0.001,2125.7,2124.7,0.96072763]
[1770562072100,1.17708612,2125.7,2124.7,0.96072763]
[1770562072706,0.001,2125.5,2124.7,0.96072763]
[1770562072906,0.001,2125.5,2124.9,0.96072763]
[1770562075408,0.001,2125.5,2125.0,1.17647058]
[1770562076989,0.001,2125.5,2125.0,2.13719821]
[1770562079813,0.001,2125.5,2125.0,1.17647058]
[1770562080512,0.95775923,2125.5,2124.5,0.0011]
[1770562081087,0.95675923,2125.3,2124.5,0.0011]
[1770562081599,0.95675923,2125.2,2124.5,0.0011]
[1770562084197,0.95675923,2125.0,2124.5,0.0011]
[1770562084991,0.95675923,2125.0,2124.7,0.0011]
[1770562085312,0.95675923,2125.0,2124.3,0.0011]
[1770562086298,0.95675923,2124.8,2124.3,0.0011]
[1770562087099,1.17652595,2124.9,2124.3,0.0011]
[1770562087506,2.13328518,2124.9,2124.3,0.0011]
[1770562088726,0.95675923,2124.8,2124.3,0.0011]
[1770562089799,0.95675923,2125.1,2124.3,0.0011]
[1770562090824,1.17647058,2125.0,2124.3,0.0011]
[1770562092204,0.95675923,2125.1,2124.3,0.96182763]
[1770562092403,1.17638789,2125.2,2124.3,0.96182763]
[1770562092629,1.17638789,2125.2,2124.4,1.17680286]
[1770562093437,1.17638789,2125.2,2124.4,2.13753049]
[1770562096744,0.94508562,2125.1,2124.3,1.17791842]
[1770562097040,0.94508562,2125.1,2124.4,1.17680065]
[1770562097223,0.94508562,2125.1,2124.5,0.0011]
[1770562099344,2.12152447,2125.1,2124.5,0.0011]
[1770562099844,1.17643885,2125.1,2124.5,0.0011]
[1770562101445,5.65054852,2125.2,2124.5,0.0011]
[1770562101628,0.94508562,2125.1,2124.5,0.0011]
[1770562103538,1.17647058,2125.0,2124.5,0.0011]
[1770562104440,4.4663142,2125.3,2124.5,0.99468641]
[1770562105918,0.94508562,2125.2,2124.5,0.0011]
[1770562107244,4.4663142,2125.3,2124.5,2.17142876]
[1770562108742,4.4663142,2125.3,2124.5,0.99468641]
[1770562109151,5.41139982,2125.3,2124.5,0.99468641]
[1770562109447,5.41139982,2125.3,2124.7,0.0011]
[1770562109827,0.001,2125.0,2124.7,0.0011]
[1770562115454,0.94608562,2125.0,2124.7,0.0011]
[1770562115659,0.001,2125.0,2124.7,0.0011]
[1770562116954,0.001,2125.0,2124.7,0.99468641]
[1770562119035,0.001,2125.0,2124.7,0.0011]
[1770562119036,0.94608562,2125.0,2124.7,0.0011]
[1770562120929,2.12161157,2124.9,2124.7,0.0011]
[1770562121954,0.94508562,2124.8,2124.2,0.0011]
[1770562122346,0.94508562,2124.8,2124.7,0.0011]
[1770562122540,4.45608562,2124.8,2124.7,0.0011]
[1770562123052,0.94508562,2124.7,2124.5,0.0011]
[1770562123354,0.94508562,2124.7,2124.0,0.0011]
[1770562123540,0.94508562,2124.7,2124.1,0.0022]
[1770562124059,0.94508562,2124.7,2124.2,0.0022]
[1770562124352,0.94508562,2124.7,2124.0,0.0011]
[1770562125051,0.99806452,2124.5,2124.0,0.0011]
[1770562127567,1.17680286,2124.4,2124.0,0.0011]
[1770562132855,1.17678468,2124.5,2124.0,0.0011]
[1770562134958,4.70683896,2124.6,2124.2,0.0011]
[1770562135160,0.001,2124.2,2124.0,0.0011]
[1770562140385,0.99806452,2124.0,2123.6,0.0011]
[1770562140684,0.99806452,2124.0,2123.2,0.0011]
[1770562141187,0.99806452,2123.9,2123.2,0.0011]